bitfinex/quotes_ETHUSD_20250708
["timestamp","ask_amount","ask_price","bid_price","bid_amount"]
[1752001604052,0.002,2620.6,2620.3,6.53032112]
[1752001604257,3.81792001,2620.6,2620.5,6.72072112]
[1752001604456,3.81792001,2620.6,2620.5,0.1904]
[1752001608376,3.8164494,2620.3,2620.1,18.81104828]
[1752001608578,3.8164494,2620.3,2620.2,6.0344]
[1752001608981,3.8164494,2620.3,2620.2,0.1904]
[1752001609154,3.8164494,2620.3,2620.2,6.0344]
[1752001609352,3.81613019,2620.5,2620.2,6.0344]
[1752001609553,3.81628825,2620.4,2620.2,6.0344]
[1752001612566,3.8163569,2620.3,2620.2,6.0344]
[1752001613184,3.81629609,2620.4,2620.2,6.0344]
[1752001615194,3.8163569,2620.3,2620.2,6.0344]
[1752001616679,3.81650255,2620.2,2620.1,2.28072716]
[1752001616886,3.81650255,2620.2,2619.9,2.47112716]
[1752001616887,3.81679389,2620.0,2619.9,2.47112716]
[1752001617197,3.81679389,2620.0,2619.9,0.1904]
[1752001618379,3.8167354,2620.1,2619.9,0.1904]
[1752001618573,3.81636621,2620.3,2619.9,6.72072112]
[1752001618772,3.81650255,2620.2,2620.1,6.53032112]
[1752001618996,3.81650255,2620.2,2620.1,0.1904]
[1752001620092,0.9567,2620.6,2620.1,6.72072112]
[1752001620093,5.841,2620.5,2620.1,6.72072112]
[1752001620292,3.81627286,2620.4,2620.1,6.72072112]
[1752001620494,0.1924,2620.6,2620.1,6.72072112]
[1752001620794,0.1924,2620.6,2620.2,6.0314]
[1752001620795,9.65899926,2620.6,2620.2,6.0314]
[1752001620965,0.002,2620.6,2620.3,6.53032112]
[1752001621164,0.002,2620.6,2620.5,0.1904]
[1752001622370,3.81792001,2620.6,2620.5,0.1904]
[1752001623493,0.002,2620.6,2620.5,0.1904]
[1752001624997,3.81792001,2620.6,2620.5,0.1904]
[1752001625221,0.002,2620.6,2620.5,0.1904]
[1752001625501,3.81792001,2620.6,2620.5,0.1904]
[1752001627088,3.81635409,2620.4,2620.3,5.841]
[1752001627304,3.8163569,2620.3,2620.2,0.1904]
[1752001627474,3.8163569,2620.3,2620.2,6.0314]
[1752001630414,3.8163569,2620.3,2620.2,0.1904]
[1752001630601,3.81650255,2620.2,2620.0,2.28072716]
[1752001630805,9.65656013,2620.2,2619.9,2.28072716]
[1752001631127,5.84,2620.3,2620.0,0.1904]
[1752001631288,3.81668315,2620.1,2620.0,0.1904]
[1752001632621,9.65641002,2620.3,2620.0,0.1904]
[1752001632622,3.81660901,2620.2,2620.0,0.1904]
[1752001632807,0.1904,2620.5,2620.0,0.974]
[1752001632995,3.81627268,2620.4,2620.0,3.06432716]
[1752001633191,9.6561145,2620.5,2620.2,6.53032112]
[1752001633192,9.65611738,2620.5,2620.2,6.53032112]
[1752001633519,9.65606738,2620.5,2620.3,0.1904]
[1752001633717,3.81606738,2620.5,2620.3,0.1904]
[1752001633921,3.81621126,2620.4,2620.3,0.1904]
[1752001634493,3.81650255,2620.2,2620.1,15.84]
[1752001634918,3.81642773,2620.3,2620.1,16.0304]
[1752001635245,3.81828309,2620.4,2620.1,16.0304]
[1752001635790,3.81823826,2620.4,2620.1,16.0304]
[1752001636499,3.81823826,2620.4,2620.1,18.31112716]
[1752001637324,3.81637198,2620.3,2620.1,18.31112716]
[1752001637528,3.81650255,2620.2,2620.1,2.47112716]
[1752001637693,3.81650255,2620.2,2620.1,0.1904]
[1752001637898,3.81664821,2620.1,2620.0,2.28072716]
[1752001638129,3.81664821,2620.1,2620.0,2.47112716]
[1752001638926,3.81664821,2620.1,2620.0,0.1904]
[1752001640129,3.81693957,2619.9,2619.8,2.28072716]
[1752001640442,3.81708527,2619.8,2619.7,2.28072716]
[1752001641344,5.84,2620.0,2619.7,2.28072716]
[1752001641345,3.81687848,2620.0,2619.7,2.28072716]
[1752001641495,5.84,2620.3,2619.9,6.53032112]
[1752001641694,3.81650255,2620.2,2619.9,6.72072112]
[1752001642298,3.81665953,2620.1,2619.9,6.72072112]
[1752001643325,3.81657925,2620.2,2619.9,6.72072112]
[1752001643526,3.81666711,2620.1,2619.9,6.72072112]
[1752001644026,5.84,2620.3,2619.9,6.72072112]
[1752001644247,9.65642527,2620.3,2619.9,10.53764736]
[1752001644598,0.1924,2620.4,2620.0,5.84]
[1752001644599,4.00867996,2620.4,2620.0,5.84]
[1752001644804,9.65827996,2620.4,2620.1,0.1904]
[1752001645004,3.81638353,2620.3,2620.1,0.1904]
[1752001646207,5.842,2620.4,2620.1,0.1904]
[1752001646208,9.65829533,2620.4,2620.1,0.1904]
[1752001646409,3.81637018,2620.3,2620.1,0.1904]
[1752001648907,5.842,2620.4,2620.1,6.72072112]
[1752001649831,3.81637699,2620.3,2620.1,6.72072112]
[1752001650128,3.81650255,2620.2,2620.1,6.72072112]
[1752001650332,3.81640439,2620.3,2620.1,0.1904]
[1752001650828,3.81643225,2620.3,2620.1,0.1904]
[1752001651412,0.002,2620.4,2620.1,8.58655877]
[1752001651612,3.81821509,2620.4,2620.1,8.58655877]
[1752001651812,3.81821509,2620.4,2620.2,5.84]
[1752001654346,3.8163569,2620.3,2620.2,5.84]
[1752001656042,3.81650255,2620.2,2620.1,0.1904]
[1752001656232,3.81650255,2620.2,2620.1,6.0304]
[1752001656844,3.81643114,2620.3,2620.1,6.0304]
[1752001657642,0.002,2620.4,2620.1,12.56072112]
[1752001657945,0.002,2620.4,2620.1,14.42653115]
[1752001658425,3.81650255,2620.2,2620.1,6.0294]
[1752001658831,3.81650255,2620.2,2620.1,0.1904]
[1752001659032,3.81650255,2620.2,2620.1,6.0294]
[1752001659548,3.81650255,2620.2,2620.0,2.28072716]
[1752001659549,3.81664821,2620.1,2620.0,2.28072716]
[1752001659750,3.81664821,2620.1,2620.0,8.31012716]
[1752001660120,3.81664821,2620.1,2620.0,2.47112716]
[1752001660419,3.81664821,2620.1,2620.0,8.31012716]
[1752001660617,3.81664821,2620.1,2620.0,6.0294]
[1752001661456,3.81664821,2620.1,2620.0,0.1904]
[1752001661620,3.81679389,2620.0,2619.9,5.839]
[1752001662246,3.81679389,2620.0,2619.8,5.839]
[1752001662454,3.81693957,2619.9,2619.8,5.839]
[1752001662825,6.0294,2620.2,2619.8,12.36932112]
[1752001662826,5.839,2620.2,2619.8,12.36932112]
[1752001663137,5.839,2620.2,2619.8,12.55972112]
[1752001663138,3.81671089,2620.1,2619.8,12.55972112]
[1752001663328,3.81671089,2620.1,2619.8,14.84044828]
[1752001663530,3.81679638,2620.0,2619.8,14.84044828]
[1752001663940,3.81671947,2620.1,2619.8,14.84044828]
[1752001664339,3.8168001,2620.0,2619.8,14.84044828]
[1752001665124,3.81693957,2619.9,2619.8,14.84044828]
[1752001665325,3.81693957,2619.9,2619.8,12.55972112]
[1752001665525,3.81693957,2619.9,2619.8,14.84044828]
[1752001666451,3.81693957,2619.9,2619.8,9.00144828]
[1752001666658,3.81693957,2619.9,2619.8,12.55972112]
[1752001666855,3.81687841,2620.0,2619.8,12.55972112]
[1752001667156,3.81693957,2619.9,2619.8,14.84044828]
[1752001667461,3.81693957,2619.9,2619.8,6.0294]
[1752001668022,3.81708527,2619.8,2619.7,2.28072716]
[1752001668233,3.81708527,2619.8,2619.7,8.11972716]
[1752001668654,3.81708527,2619.8,2619.7,5.839]
[1752001669556,3.81708527,2619.8,2619.6,9.00144828]
[1752001669758,3.81701119,2619.9,2619.7,6.643]
[1752001670560,3.81723098,2619.7,2619.6,2.47112716]
[1752001670741,3.81723098,2619.7,2619.6,6.0294]
[1752001674671,4.60987669,2619.6,2619.5,0.001]
[1752001676935,4.60987669,2619.6,2619.5,1e-08]
[1752001677867,4.80756458,2619.6,2619.5,1e-08]
[1752001679875,4.61010545,2619.1,2619.0,1e-08]
[1752001680174,4.61054284,2618.8,2618.7,1e-08]
[1752001680369,11.29343847,2618.8,2618.7,1e-08]
[1752001680569,4.00894284,2618.8,2618.7,1e-08]
[1752001680743,3.81854284,2618.8,2618.7,1e-08]
[1752001681136,6.0294,2619.0,2618.7,1e-08]
[1752001681367,5.839,2619.0,2618.8,6.53032112]
[1752001681675,0.1904,2619.2,2618.8,6.53032112]
[1752001681973,0.1904,2619.3,2619.0,6.53032112]
[1752001682137,3.81772055,2619.4,2619.0,6.72072112]
[1752001682541,5.839,2619.4,2619.0,6.72072112]
[1752001682964,5.839,2619.4,2619.0,0.1904]
[1752001683842,9.65666904,2619.4,2619.0,0.1904]
[1752001685871,7.28452578,2619.4,2619.0,0.1904]
[1752001686072,3.81827679,2619.0,2618.7,1e-08]
[1752001686276,6.8399,2619.2,2618.7,0.19040001]
[1752001686477,6.8399,2619.2,2618.7,1e-08]
[1752001686478,3.81854284,2618.8,2618.7,1e-08]
[1752001686782,10.62864284,2618.8,2618.7,1e-08]
[1752001688379,9.84894284,2618.8,2618.7,1e-08]
[1752001689471,4.00894284,2618.8,2618.7,1e-08]
[1752001689668,9.84894284,2618.8,2618.7,1e-08]
[1752001690355,4.00894284,2618.8,2618.7,1e-08]
[1752001690561,9.65854284,2618.8,2618.7,1e-08]
[1752001691551,3.81854284,2618.8,2618.7,1e-08]
[1752001691754,4.00894284,2618.8,2618.7,1e-08]
[1752001693478,0.1904,2618.8,2618.7,1e-08]
[1752001695164,4.00894284,2618.8,2618.7,1e-08]
[1752001697981,4.76744284,2618.8,2618.7,1e-08]
[1752001698181,5.62602861,2618.8,2618.7,1e-08]
[1752001702486,5.62802861,2618.8,2618.7,1e-08]
[1752001703886,4.86952861,2618.8,2618.7,1e-08]
[1752001704074,4.01094284,2618.8,2618.7,1e-08]
[1752001704281,3.82054284,2618.8,2618.7,1e-08]
[1752001705700,3.81868866,2618.7,2618.6,1e-08]
[1752001705882,9.65968866,2618.7,2618.6,1e-08]
[1752001706992,10.0165472,2618.7,2618.6,1e-08]
[1752001707192,11.16598973,2618.7,2618.6,1e-08]
[1752001707395,11.52283069,2618.7,2618.6,1e-08]
[1752001707595,11.5228372,2618.7,2618.6,1e-08]
[1752001707900,11.52281763,2618.7,2618.6,1e-08]
[1752001708201,5.12807204,2618.3,2618.2,1e-08]
[1752001708382,10.41907204,2618.3,2618.2,1e-08]
[1752001709702,10.96907204,2618.3,2618.2,1e-08]
[1752001709886,10.41907204,2618.3,2618.2,1e-08]
[1752001711582,10.96907204,2618.3,2618.2,1e-08]
[1752001712831,5.12807204,2618.3,2618.2,1e-08]
[1752001712974,10.77876327,2618.3,2618.2,1e-08]
[1752001713170,10.42207204,2618.3,2618.2,1e-08]
[1752001713876,3.81927204,2618.3,2618.2,1e-08]
[1752001714097,0.002,2618.8,2618.2,1e-08]
[1752001714293,3.81906632,2618.5,2618.3,0.9981]
[1752001714486,0.1924,2618.8,2618.3,0.9981]
[1752001714715,3.82063285,2618.8,2618.4,7.28316323]
[1752001714903,3.82063285,2618.8,2618.5,0.9981]
[1752001714904,9.66756174,2618.8,2618.5,0.9981]
[1752001715096,0.002,2618.8,2618.5,0.9981]
[1752001715326,5.849,2618.8,2618.7,0.1904]
[1752001715518,0.002,2618.8,2618.7,0.1904]
[1752001716224,3.82054284,2618.8,2618.7,0.1904]
[1752001716726,3.81883449,2618.6,2618.5,0.8077]
[1752001716892,3.81898033,2618.5,2618.4,0.1904]
[1752001717728,3.81898033,2618.5,2618.3,0.7551]
[1752001717930,3.81898033,2618.5,2618.3,0.9455]
[1752001718087,3.81912618,2618.4,2618.3,0.9455]
[1752001720339,9.66375857,2618.7,2618.3,10.9455]
[1752001720536,9.66456412,2618.8,2618.4,1.51467619]
[1752001720697,9.66456412,2618.8,2618.4,0.03819126]
[1752001721024,9.66456412,2618.8,2618.6,0.1904]
[1752001721225,3.81881234,2618.7,2618.6,0.1904]
[1752001721720,3.81881234,2618.7,2618.3,0.7551]
[1752001721721,3.81912618,2618.4,2618.3,0.7551]
[1752001722127,3.81912618,2618.4,2618.3,0.9455]
[1752001724198,9.66388582,2618.6,2618.3,0.9455]
[1752001724426,3.81912618,2618.4,2618.3,0.9455]
[1752001724604,9.66312618,2618.4,2618.3,0.9455]
[1752001725591,3.81912618,2618.4,2618.3,0.9455]
[1752001728627,3.81912618,2618.4,2618.3,1e-08]
[1752001728830,9.66712618,2618.4,2618.3,1e-08]
[1752001729810,3.81912618,2618.4,2618.3,1e-08]
[1752001730239,9.66712618,2618.4,2618.3,1e-08]
[1752001730450,9.66712618,2618.4,2618.3,0.19040001]
[1752001731615,3.81912618,2618.4,2618.3,0.19040001]
[1752001731811,5.38213937,2618.4,2618.3,0.19040001]
[1752001732016,5.38213937,2618.4,2618.3,1e-08]
[1752001732017,11.23013937,2618.4,2618.3,1e-08]
[1752001734814,11.24713937,2618.4,2618.3,1e-08]
[1752001736150,3.82000152,2617.8,2617.7,1e-08]
[1752001736438,10.45899003,2617.8,2617.7,1e-08]
[1752001738950,3.82014745,2617.7,2617.6,1e-08]
[1752001739158,4.60764745,2617.7,2617.6,1e-08]
[1752001739761,4.60764745,2617.7,2616.5,3.48882683]
[1752001739762,3.82087727,2617.2,2616.5,0.8922842]
[1752001740082,10.899065,2617.2,2616.5,0.8922842]
[1752001741164,4.202965,2617.2,2616.5,0.8922842]
[1752001741338,9.71087727,2617.2,2616.5,0.93050319]
[1752001742032,3.82087727,2617.2,2616.5,0.93050319]
[1752001742291,9.71087727,2617.2,2616.5,0.93050319]
[1752001743279,10.48107727,2617.2,2617.1,1e-08]
[1752001743883,9.71087727,2617.2,2617.1,1e-08]
[1752001744049,10.49072198,2617.2,2617.1,1e-08]
[1752001744258,11.81192198,2617.2,2617.1,1e-08]
[1752001744755,21.81192198,2617.2,2617.1,1e-08]
[1752001745080,15.92192198,2617.2,2617.1,1e-08]
[1752001745292,5.37192198,2617.2,2617.1,1e-08]
[1752001745440,11.27092198,2617.2,2617.1,1e-08]
[1752001745637,5.37192198,2617.2,2617.1,1e-08]
[1752001745842,11.27092198,2617.2,2617.1,1e-08]
[1752001748741,10.49972198,2617.2,2617.1,1e-08]
[1752001748969,10.50072198,2617.2,2617.1,1e-08]
[1752001749169,10.50072198,2617.2,2617.1,0.82290001]
[1752001749170,3.82087727,2617.2,2617.1,0.82290001]
[1752001749376,3.82087727,2617.2,2617.1,1e-08]
[1752001749550,10.50287727,2617.2,2617.1,1e-08]
[1752001750584,4.60175342,2616.6,2616.5,1e-08]
[1752001750765,4.6640918,2616.6,2616.5,1e-08]
[1752001750960,9.73375342,2616.6,2616.5,1e-08]
[1752001752481,10.51375342,2616.6,2616.5,1e-08]
[1752001753060,10.51475342,2616.6,2616.5,1e-08]
[1752001753472,10.51475342,2616.6,2616.4,0.01]
[1752001753473,4.37189948,2616.5,2616.4,1e-08]
[1752001753682,3.82189948,2616.5,2616.4,1e-08]
[1752001754655,4.37189948,2616.5,2616.4,1e-08]
[1752001755063,5.14829948,2616.5,2616.4,1e-08]
[1752001757169,4.59829948,2616.5,2616.4,1e-08]
[1752001758264,5.14829948,2616.5,2616.4,1e-08]
[1752001759297,4.59829948,2616.5,2616.4,1e-08]
[1752001759461,10.51929948,2616.5,2616.4,1e-08]
[1752001760880,4.59829948,2616.5,2616.4,1e-08]
[1752001761195,10.52529948,2616.5,2616.4,1e-08]
[1752001762473,9.74889948,2616.5,2616.4,1e-08]
[1752001763080,9.74789948,2616.5,2616.4,1e-08]
[1752001765798,9.74089948,2616.5,2616.4,1e-08]
[1752001765998,10.55969948,2616.5,2616.4,1e-08]
[1752001766382,21.10969948,2616.5,2616.4,1e-08]
[1752001766577,21.66224744,2616.5,2616.4,1e-08]
[1752001766997,23.02483482,2616.5,2616.4,1e-08]
[1752001767579,23.02483482,2616.5,2615.6,0.0701842]
[1752001767783,3.82365311,2615.3,2615.2,0.39968421]
[1752001768586,3.82382379,2615.2,2615.0,7.93027694]
[1752001768905,3.82377978,2615.3,2615.0,8.73032305]
[1752001769501,3.82380118,2615.2,2615.0,8.73032305]
[1752001769808,3.82380118,2615.2,2615.0,7.43027694]
[1752001769809,3.82394554,2615.1,2615.0,7.43027694]
[1752001770185,3.82394554,2615.1,2615.0,1e-08]
[1752001770186,5.17114554,2615.1,2615.0,1e-08]
[1752001770586,3.82423802,2614.9,2614.8,1e-08]
[1752001770801,9.75423802,2614.9,2614.8,1e-08]
[1752001771183,9.75423802,2614.9,2613.7,19.95569453]
[1752001771184,4.3759938,2613.7,2613.3,0.5]
[1752001771382,5.93,2613.7,2613.3,0.5]
[1752001771610,0.03825571,2613.6,2613.4,0.7836]
[1752001771819,3.82462852,2614.7,2613.6,3.82603819]
[1752001771820,0.03825571,2614.3,2613.6,3.82603819]
[1752001772000,3.82520358,2614.3,2613.8,10.0]
[1752001772191,0.03825571,2614.6,2613.9,0.82185701]
[1752001772387,3.82490833,2614.5,2613.9,0.82185701]
[1752001772605,3.82490833,2614.5,2613.9,4.64749563]
[1752001772786,0.7972,2615.3,2614.2,10.0]
[1752001773116,3.82421161,2615.0,2614.6,10.0]
[1752001773313,3.82437745,2614.9,2614.3,20.9833867]
[1752001773513,3.82437745,2614.9,2614.3,24.8084847]
[1752001773719,3.82437745,2614.9,2614.4,3.69804847]
[1752001774015,0.03825571,2615.3,2614.5,0.03824823]
[1752001774016,3.82440976,2614.8,2614.5,0.03824823]
[1752001774518,3.8248231,2614.5,2614.4,3.69804847]
[1752001774713,3.8248231,2614.5,2614.4,10.0]
[1752001774888,3.82472144,2614.6,2614.4,10.0]
[1752001775213,3.82462314,2614.7,2613.9,0.7968]
[1752001775214,3.82562303,2614.0,2613.9,0.7968]
[1752001775712,3.82562303,2614.0,2613.9,0.78502]
[1752001775921,0.03825571,2614.4,2613.9,0.78502]
[1752001776092,3.82520053,2614.3,2613.9,1.863522]
[1752001776291,3.86352914,2614.2,2613.9,2.054722]
[1752001776500,3.82453053,2614.7,2613.9,1.863522]
[1752001776715,6.082,2614.8,2613.9,1.863522]
[1752001776716,3.8252605,2614.3,2614.1,0.1912]
[1752001777111,3.82495049,2614.5,2614.1,0.1912]
[1752001777286,0.03825571,2614.4,2614.1,0.1912]
[1752001777494,3.82453512,2614.7,2614.2,0.03825262]
[1752001777792,3.82453512,2614.7,2614.3,0.1912]
[1752001777999,0.8258,2615.4,2614.2,3.62293687]
[1752001778000,3.82332998,2615.6,2614.5,10.0]
[1752001778222,3.82350692,2615.4,2614.7,10.0]
[1752001778520,3.8239677,2615.1,2614.7,10.0]
[1752001778714,3.8239677,2615.1,2614.9,10.0]
[1752001779619,0.03825571,2615.5,2614.9,10.0]
[1752001779620,3.82355207,2615.4,2614.9,10.0]
[1752001779821,0.03825571,2615.5,2614.9,10.0]
[1752001779822,3.82350416,2615.5,2615.0,0.03824091]
[1752001780124,10.0108,2616.2,2615.3,10.0]
[1752001780439,3.82302183,2615.8,2615.3,10.0]
[1752001780625,3.82302183,2615.8,2615.3,13.70052754]
[1752001781009,3.82302183,2615.8,2615.4,0.03823506]
[1752001781210,3.82292224,2615.8,2615.4,0.03823506]
[1752001781426,3.82321611,2615.6,2615.4,0.03823506]
[1752001781644,3.82313047,2615.7,2615.3,13.70052754]
[1752001781820,3.82333922,2615.6,2615.4,2.47111142]
[1752001782023,3.82307996,2615.7,2615.2,0.8108]
[1752001782221,3.82329799,2615.6,2615.4,10.0]
[1752001782427,0.03825571,2615.9,2615.4,10.0]
[1752001782428,3.82336073,2615.5,2615.4,10.0]
[1752001783235,3.82327806,2615.6,2615.4,10.0]
[1752001783432,3.82313743,2615.7,2615.4,10.0]
[1752001783609,3.82313743,2615.7,2615.4,12.29718]
[1752001783816,3.82326198,2615.6,2615.4,12.29718]
[1752001784015,3.82269869,2616.0,2615.5,0.8522336]
[1752001784216,3.82269869,2616.0,2615.5,0.814]
[1752001784715,3.82269869,2616.0,2615.6,0.03823214]
[1752001784916,3.82256173,2616.1,2615.8,10.0]
[1752001785115,3.86081744,2616.1,2615.8,10.0]
[1752001785318,3.8226543,2616.0,2615.8,10.0]
[1752001785732,0.03825571,2616.4,2615.8,10.0]
[1752001785916,3.82240623,2616.2,2615.8,10.0]
[1752001786233,3.86041161,2616.4,2615.8,12.73619371]
[1752001786414,3.86041161,2616.4,2615.9,4.67492923]
[1752001786607,0.0701842,2616.5,2616.1,13.82246786]
[1752001786813,0.0701842,2616.5,2616.3,10.8332]
[1752001787122,0.0701842,2616.5,2616.4,26.004266]
[1752001787322,0.0701842,2616.5,2616.4,25.96604555]
[1752001787525,0.0701842,2616.5,2616.4,28.46306222]
[1752001788031,0.0701842,2616.5,2616.4,28.65346222]
[1752001788436,0.0701842,2616.5,2616.4,24.83141667]
[1752001788836,0.0701842,2616.5,2616.4,28.65346222]
[1752001789518,0.0701842,2616.5,2616.4,29.48666222]
[1752001790430,0.0701842,2616.5,2616.4,19.58561667]
[1752001790606,0.0701842,2616.5,2616.4,11.0236]
[1752001790803,0.0701842,2616.5,2616.4,17.0876]
[1752001791149,0.0701842,2616.5,2616.4,20.90964555]
[1752001791726,0.0701842,2616.5,2616.4,14.84564555]
[1752001791925,0.0701842,2616.5,2616.4,20.90964555]
[1752001792121,0.0701842,2616.5,2616.4,23.38282768]
[1752001792739,0.0701842,2616.5,2616.4,23.37982768]
[1752001792966,0.0701842,2616.5,2616.4,17.31882768]
[1752001793144,0.0701842,2616.5,2616.4,23.73942768]
[1752001793707,0.0701842,2616.5,2616.4,13.30638213]
[1752001793913,0.0701842,2616.5,2616.4,16.8992]
[1752001794252,0.0701842,2616.5,2616.4,6.8992]
[1752001794473,0.0701842,2616.5,2616.4,6.8972]
[1752001795312,0.0701842,2616.5,2616.4,6.93542045]
[1752001795838,0.0701842,2616.5,2616.4,6.8972]
[1752001796042,0.0701842,2616.5,2616.4,6.8932]
[1752001796359,0.0701842,2616.5,2616.4,16.8932]
[1752001800490,3.89208952,2616.5,2615.7,0.8233]
[1752001800670,3.82264027,2616.0,2615.7,0.8233]
[1752001800978,3.82286142,2615.9,2615.4,0.7992]
[1752001801147,3.82286142,2615.9,2615.8,10.0]
[1752001801330,3.82263215,2616.0,2615.4,0.7992]
[1752001801331,3.82310541,2615.7,2615.4,0.7992]
[1752001801534,3.82284705,2615.9,2615.5,6.052]
[1752001801767,3.82284705,2615.9,2615.6,10.0]
[1752001801969,3.82284705,2615.9,2615.8,10.0]
[1752001802447,3.82284705,2615.9,2615.8,16.05]
[1752001802650,3.82299109,2615.8,2615.4,0.7992]
[1752001802857,3.82299109,2615.8,2615.6,10.0]
[1752001803071,3.82299109,2615.8,2615.7,16.2394]
[1752001803730,4.63870591,2615.8,2615.7,0.1904]
[1752001804079,3.82379932,2615.2,2614.5,0.7752]
[1752001804294,3.82461807,2614.7,2614.5,0.7752]
[1752001804599,3.824458,2614.8,2614.7,10.0]
[1752001804891,3.82431232,2614.9,2614.7,10.21334447]
[1752001805090,3.82424986,2614.9,2614.8,0.21334447]
[1752001805265,3.82418169,2615.0,2614.8,0.21334447]
[1752001805451,3.82418169,2615.0,2614.9,0.21334447]
[1752001805983,3.82418169,2615.0,2614.7,11.22122651]
[1752001805984,3.82409177,2615.0,2614.7,11.22122651]
[1752001806482,3.82409177,2615.0,2614.7,1.22122651]
[1752001806680,3.82409177,2615.0,2614.8,6.063]
[1752001806884,0.7847,2615.3,2614.8,6.063]
[1752001807063,3.82341461,2615.5,2614.9,10.03824238]
[1752001807264,3.82387384,2615.2,2615.0,6.8419]
[1752001807975,3.82365311,2615.3,2615.0,6.8419]
[1752001808463,3.82383239,2615.2,2615.0,6.8419]
[1752001808979,3.82355867,2615.4,2615.0,6.8389]
[1752001809184,3.82372615,2615.3,2615.0,6.8389]
[1752001809553,3.82372615,2615.3,2615.0,6.8379]
[1752001811189,0.03825571,2615.6,2615.0,6.87614091]
[1752001811489,3.82359579,2615.4,2615.0,6.8379]
[1752001812393,0.03825571,2615.6,2615.0,0.7829]
[1752001812600,3.82358022,2615.4,2615.0,6.8319]
[1752001812757,3.82394554,2615.1,2615.0,6.8319]
[1752001812958,3.82394554,2615.1,2615.0,10.0]
[1752001814590,3.82388255,2615.2,2615.0,10.0]
[1752001814892,3.82562776,2614.0,2613.7,0.1912]
[1752001815091,0.03825571,2614.0,2613.7,0.1912]
[1752001815296,4.05479537,2614.2,2613.7,0.22945993]
[1752001815502,3.82541085,2614.1,2613.7,0.22945993]
[1752001815885,3.82562402,2614.0,2613.7,10.22945993]
[1752001816195,3.8255547,2614.0,2613.7,10.1912]
[1752001816562,3.8255547,2614.0,2613.8,6.09]
[1752001818398,3.82546077,2614.1,2613.8,6.09]
[1752001818693,3.82546077,2614.1,2613.8,6.086]
[1752001819070,0.1912,2614.2,2613.9,10.03825701]
[1752001819263,3.82506526,2614.4,2614.1,10.0]
[1752001819664,3.82506526,2614.4,2614.2,0.1912]
[1752001820080,3.82489704,2614.5,2614.2,0.1912]
[1752001820290,0.8277,2615.0,2614.3,10.03825115]
[1752001820500,0.8277,2615.0,2614.5,4.62225317]
[1752001820501,3.82418011,2615.0,2614.5,4.62225317]
[1752001820692,4.81047378,2615.3,2614.8,0.1912]
[1752001820982,3.82382952,2615.2,2614.9,0.1912]
[1752001821176,3.82401677,2615.1,2614.9,0.1912]
[1752001823566,3.82409177,2615.0,2614.9,0.1912]
[1752001823768,3.82402171,2615.1,2614.9,0.1912]
[1752001824403,3.82409177,2615.0,2614.9,0.1912]
[1752001824568,3.82409177,2615.0,2614.8,0.1912]
[1752001824767,3.82437435,2614.9,2614.8,0.1912]
[1752001824987,3.82443126,2614.8,2614.6,6.075]
[1752001825271,3.82443126,2614.8,2614.7,0.1912]
[1752001825682,3.82432067,2614.9,2614.7,0.1912]
[1752001825894,3.82438427,2614.8,2614.7,0.1912]
[1752001826200,3.82541603,2614.1,2613.8,0.1912]
[1752001826614,3.82559795,2614.0,2613.8,0.1912]
[1752001826796,3.86395676,2613.9,2613.8,0.1912]
[1752001827511,3.82570105,2613.9,2613.8,0.1912]
[1752001830111,3.82614333,2613.6,2613.2,0.8015]
[1752001830323,0.03825571,2613.5,2613.1,0.8015]
[1752001830615,3.42311654,2615.7,2613.1,0.8015]
[1752001830616,6.089,2614.4,2613.7,0.8015]
[1752001830824,3.82486676,2614.5,2613.9,10.0]
[1752001831124,3.82456118,2614.7,2614.1,10.0]
[1752001831277,3.82481076,2614.6,2614.1,10.0]
[1752001831481,3.82467681,2614.6,2614.1,10.0]
[1752001831808,3.86292918,2614.7,2614.1,10.0]
[1752001832009,3.86292918,2614.7,2614.3,10.0]
[1752001832196,0.03825571,2615.1,2614.4,0.03824969]
[1752001832397,3.82409177,2615.0,2614.5,10.0]
[1752001832599,3.82409177,2615.0,2614.6,6.089]
[1752001832910,3.82403373,2615.1,2614.7,0.0382453]
[1752001833206,3.8241074,2615.0,2614.6,6.089]
[1752001833412,3.82401072,2615.1,2614.6,6.089]
[1752001833616,3.82401072,2615.1,2614.6,9.91366713]
[1752001833785,3.86210665,2615.2,2614.6,9.91366713]
[1752001833987,3.86210665,2615.2,2614.7,0.0382453]
[1752001834187,3.8239545,2615.1,2614.7,0.0382453]
[1752001834395,3.86207775,2615.2,2614.7,0.0382453]
[1752001834716,3.82475325,2614.6,2614.2,6.086]
[1752001834888,3.82487705,2614.5,2614.2,6.106]
[1752001835217,3.82472081,2614.6,2614.2,8.10298088]
[1752001835418,3.82472081,2614.6,2614.2,6.106]
[1752001835712,3.82482357,2614.5,2614.3,6.107]
[1752001837222,3.8249694,2614.4,2614.3,6.107]
[1752001837712,4.67822851,2614.7,2614.1,10.0]
[1752001837883,3.82526203,2614.2,2614.1,10.0]
[1752001838283,3.82526203,2614.2,2614.1,6.102]
[1752001838479,3.82517329,2614.3,2614.1,6.102]
[1752001838714,3.8248231,2614.5,2614.1,6.102]
[1752001838919,3.82520202,2614.3,2614.1,6.102]
[1752001839120,3.82520202,2614.3,2613.9,0.81525701]
[1752001839296,3.82382025,2615.2,2614.4,10.0]
[1752001839619,3.82428304,2614.9,2614.6,10.0]
[1752001839783,3.82428304,2614.9,2614.7,6.105]
[1752001839983,3.82414071,2615.0,2614.7,6.105]
[1752001840198,3.86214306,2615.2,2614.7,6.105]
[1752001840199,3.82406147,2615.1,2614.7,6.105]
[1752001840395,0.03825571,2615.2,2614.8,10.1912]
[1752001840613,3.82368321,2615.3,2615.0,0.1912]
[1752001841388,0.03825571,2615.4,2615.0,0.1912]
[1752001841389,0.1904,2615.5,2615.1,10.0]
[1752001841622,3.82298835,2615.8,2615.3,3.82363597]
[1752001841835,4.01332418,2615.8,2615.4,6.101]
[1752001843031,3.8230739,2615.7,2615.4,6.101]
[1752001843228,0.1904,2615.8,2615.4,6.101]
[1752001843452,0.1904,2615.8,2615.4,9.92436918]
[1752001843943,0.002,2616.0,2615.6,3.82313949]
[1752001844104,0.002,2616.0,2615.7,0.22863068]
[1752001844105,3.8247053,2616.0,2615.7,0.22863068]
[1752001844310,3.8247053,2616.0,2615.7,6.2864]